fUSD/lending_fUSD_20260516
["ID","MTS","AMOUNT","RATE_DAILY","PERIOD"]
[422388592,1778919286000,-208.10865683,0.00041141,120]
[422388590,1778919286000,-1702.75,0.00041133,120]
[422388591,1778919286000,-199913.4503341,0.00041137,30]
[422388593,1778919286000,-151.0,0.00041146,30]
[422388609,1778919287000,-1000.0,0.000412,120]
[422388601,1778919287000,-275.0,0.0004115,120]
[422388602,1778919287000,-370.5591453,0.0004115,120]
[422388603,1778919287000,-750.0,0.0004115,120]
[422388605,1778919287000,-908.63099751,0.00041152,120]
[422388604,1778919287000,-475.70791114,0.0004115,120]
[422388606,1778919287000,-237.97046201,0.00041159,120]
[422388607,1778919287000,-342.86551795,0.00041184,120]
[422388608,1778919287000,-873.57966454,0.00041198,120]
[422388610,1778919287000,-197.24615717,0.000412,30]
[422388600,1778919287000,-70000.0,0.00041147,120]
[422388612,1778919287000,-1000.0,0.000412,120]
[422388613,1778919287000,-1000.0,0.000412,120]
[422388615,1778919287000,-506.42,0.000412,120]
[422388614,1778919287000,-1000.0,0.000412,120]
[422388616,1778919287000,-2010.43899215,0.000412,120]
[422388618,1778919287000,-160.0,0.000412,55]
[422388617,1778919287000,-183.899999,0.000412,55]
[422388620,1778919287000,-263336.0,0.000412,30]
[422388621,1778919287000,-256.97405848,0.00041205,120]
[422388619,1778919287000,-161.222729,0.000412,55]
[422388622,1778919287000,-342.86551795,0.0004123,120]
[422388623,1778919287000,-245.93,0.0004125,120]
[422388611,1778919287000,-149999.99999901,0.000412,30]
[422388632,1778919288000,-150.0,0.00041341,120]
[422388631,1778919288000,-873.57966453,0.00041335,120]
[422388633,1778919288000,-306.10456539,0.00041354,120]
[422388625,1778919288000,-342.86551795,0.00041276,120]
[422388624,1778919288000,-1447.1,0.0004125,120]
[422388630,1778919288000,-342.86551795,0.00041323,120]
[422388627,1778919288000,-8282.0843406,0.00041297,120]
[422388628,1778919288000,-211.0,0.000413,120]
[422388634,1778919288000,-342.86551795,0.00041369,120]
[422388629,1778919288000,-213.84258406,0.00041315,120]
[422388635,1778919288000,-441.51714768,0.00041369,120]
[422388626,1778919288000,-543.37882569,0.00041291,60]
[422388636,1778919288000,-9994.8501225,0.0004137,120]
[422388637,1778919288000,-391.69285661,0.0004137,120]
[422388648,1778919288000,-1091.39394543,0.0004137,120]
[422388647,1778919288000,-2546.58587267,0.0004137,120]
[422388646,1778919288000,-449.65624418,0.0004137,120]
[422388644,1778919288000,-988.03557296,0.0004137,120]
[422388641,1778919288000,-437.04642783,0.0004137,120]
[422388643,1778919288000,-437.04642783,0.0004137,120]
[422388645,1778919288000,-1080.05965165,0.0004137,120]
[422388640,1778919288000,-902.79975616,0.0004137,120]
[422388638,1778919288000,-817.56393936,0.0004137,120]
[422388642,1778919288000,-988.03557296,0.0004137,120]
[422388639,1778919288000,-804.93190604,0.0004137,120]
[422388649,1778919289000,-2621.15972865,0.0004137,120]
[422388650,1778919289000,-194.71857098,0.0004137,120]
[422388651,1778919289000,-167.3563342,0.0004137,120]
[422388653,1778919289000,-201.57,0.0004138,120]
[422388652,1778919289000,-329.98140753,0.00041374,60]
[422388655,1778919289000,-207.67,0.0004138,120]
[422388654,1778919289000,-207.64,0.0004138,120]
[422388656,1778919289000,-187.69,0.0004138,120]
[422388658,1778919289000,-158.13,0.0004138,120]
[422388660,1778919289000,-210.84,0.0004138,120]
[422388659,1778919289000,-158.15,0.0004138,120]
[422388661,1778919289000,-280.0,0.000414,120]
[422388657,1778919289000,-187.71,0.0004138,120]
[422388664,1778919289000,-342.86551795,0.00041415,120]
[422388674,1778919289000,-80000.0,0.000415,75]
[422388662,1778919289000,-2470.12553182,0.000414,120]
[422388672,1778919289000,-80000.0,0.000415,65]
[422388670,1778919289000,-16552.79983908,0.000415,30]
[422388671,1778919289000,-80000.0,0.000415,60]
[422388669,1778919289000,-2500.0,0.000415,30]
[422388673,1778919289000,-80000.0,0.000415,70]
[422388668,1778919289000,-500.0,0.000415,120]
[422388665,1778919289000,-150.0,0.00041437,120]
[422388666,1778919289000,-2190.0,0.00041438,120]
[422388663,1778919289000,-882.48563277,0.00041403,120]
[422388667,1778919289000,-342.86551795,0.00041461,120]
[422388684,1778919290000,-500.0,0.000415,45]
[422388675,1778919290000,-208.5810968,0.000415,45]
[422388676,1778919290000,-500.0,0.000415,45]
[422388678,1778919290000,-500.0,0.000415,45]
[422388679,1778919290000,-500.0,0.000415,45]
[422388677,1778919290000,-500.0,0.000415,45]
[422388681,1778919290000,-500.0,0.000415,45]
[422388682,1778919290000,-500.0,0.000415,45]
[422388680,1778919290000,-500.0,0.000415,45]
[422388683,1778919290000,-500.0,0.000415,45]
[422388694,1778919290000,-1000.0,0.0004153,120]
[422388685,1778919290000,-500.0,0.000415,45]
[422388686,1778919290000,-500.0,0.000415,45]
[422388689,1778919290000,-171.31496956,0.000415,120]
[422388688,1778919290000,-150.0,0.000415,120]
[422388690,1778919290000,-150.0,0.000415,120]
[422388691,1778919290000,-342.86551795,0.00041508,120]
[422388692,1778919290000,-1000.0,0.00041524,120]
[422388693,1778919290000,-273.95,0.0004153,120]
[422388695,1778919290000,-1000.0,0.00041537,120]
[422388687,1778919290000,-9585.61865791,0.000415,120]
[422388703,1778919291000,-1000.0,0.00041575,120]
[422388705,1778919291000,-1000.0,0.00041581,120]
[422388704,1778919291000,-150.0,0.0004158,120]
[422388701,1778919291000,-1000.0,0.00041562,120]
[422388697,1778919291000,-1000.0,0.00041549,120]
[422388698,1778919291000,-342.86551795,0.00041554,120]
[422388699,1778919291000,-1000.0,0.00041556,120]
[422388696,1778919291000,-1000.0,0.00041543,120]
[422388707,1778919291000,-1000.0,0.00041593,120]
[422388700,1778919291000,-150.0,0.00041558,120]
[422388706,1778919291000,-1000.0,0.00041587,120]
[422388702,1778919291000,-1000.0,0.00041568,120]
[422388709,1778919291000,-1000.0,0.000416,120]
[422388708,1778919291000,-330.0,0.00041593,91]
[422388718,1778919291000,-573.87,0.00041644,120]
[422388716,1778919291000,-1000.0,0.00041631,120]
[422388717,1778919291000,-1000.0,0.00041638,120]
[422388715,1778919291000,-1000.0,0.00041625,120]
[422388719,1778919291000,-1038.42,0.00041644,120]
[422388713,1778919291000,-1000.0,0.00041612,120]
[422388714,1778919291000,-1000.0,0.00041619,120]
[422388711,1778919291000,-342.86551795,0.000416,120]
[422388712,1778919291000,-1000.0,0.00041606,120]
[422388710,1778919291000,-295.82686932,0.000416,60]
[422388720,1778919291000,-1021.66,0.00041644,120]
[422388729,1778919292000,-299.98309777,0.00041678,60]
[422388730,1778919292000,-1450.4,0.00041694,120]
[422388728,1778919292000,-329.98140753,0.00041678,60]
[422388726,1778919292000,-10000.0,0.00041671,120]
[422388725,1778919292000,-635.97,0.00041644,120]
[422388724,1778919292000,-588.16,0.00041644,30]
[422388723,1778919292000,-710.31,0.00041644,120]
[422388721,1778919292000,-592.57,0.00041644,120]
[422388732,1778919292000,-985.03903509,0.000417,120]
[422388727,1778919292000,-10000.0,0.00041671,120]
[422388731,1778919292000,-23130.21,0.000417,120]
[422388722,1778919292000,-1511.67115319,0.00041644,120]
[422388735,1778919292000,-1343.93527722,0.000417,120]
[422388744,1778919292000,-4446.18476816,0.000417,120]
[422388745,1778919292000,-1010.68825121,0.000417,120]
[422388741,1778919292000,-2260.52,0.000417,120]
[422388742,1778919292000,-953.11908307,0.000417,120]
[422388743,1778919292000,-1294.9759681,0.000417,120]
[422388733,1778919292000,-1202.46089551,0.000417,120]
[422388740,1778919292000,-63421.01,0.000417,120]
[422388738,1778919292000,-1045.82646562,0.000417,120]
[422388736,1778919292000,-984.06333917,0.000417,120]
[422388737,1778919292000,-872.21149206,0.000417,120]
[422388734,1778919292000,-986.12352033,0.000417,120]
[422388739,1778919292000,-2055.38083759,0.000417,120]
[422388756,1778919293000,-80000.0,0.000418,35]
[422388754,1778919293000,-480.78065404,0.000418,120]
[422388755,1778919293000,-80000.0,0.000418,30]
[422388752,1778919293000,-1000.0,0.000418,30]
[422388753,1778919293000,-4945.62778018,0.000418,60]
[422388749,1778919293000,-1476.04,0.0004175,120]
[422388751,1778919293000,-87265.97732557,0.000418,60]
[422388747,1778919293000,-11546.0,0.000417,117]
[422388748,1778919293000,-250.84,0.0004175,120]
[422388758,1778919293000,-204.2747063,0.000418,120]
[422388750,1778919293000,-2578.27867207,0.0004179,120]
[422388746,1778919293000,-1285.9649033,0.000417,120]
[422388757,1778919293000,-80000.0,0.000418,40]
[422388760,1778919293000,-1449.54,0.000418,120]
[422388761,1778919293000,-301.52291804,0.000418,90]
[422388762,1778919293000,-213.36350281,0.00041839,120]
[422388763,1778919293000,-20000.0,0.0004188,50]
[422388765,1778919293000,-100000.0,0.000419,120]
[422388764,1778919293000,-767.17627339,0.000419,30]
[422388767,1778919293000,-151.8,0.000419,120]
[422388766,1778919293000,-408.59913882,0.000419,120]
[422388768,1778919293000,-1383.33767758,0.000419,30]
[422388770,1778919293000,-2099.36,0.000419,120]
[422388769,1778919293000,-190.21155056,0.000419,60]
[422388759,1778919293000,-211.0,0.000418,120]
[422388779,1778919294000,-1552.75206154,0.000419,120]
[422388780,1778919294000,-1552.75206154,0.000419,120]
[422388777,1778919294000,-1552.75206154,0.000419,120]
[422388776,1778919294000,-1552.75206154,0.000419,120]
[422388781,1778919294000,-1552.75206154,0.000419,120]
[422388774,1778919294000,-1552.75206154,0.000419,120]
[422388773,1778919294000,-1552.75206167,0.000419,120]
[422388772,1778919294000,-1839.5418684,0.000419,30]
[422388771,1778919294000,-152.0,0.000419,120]
[422388775,1778919294000,-1552.75206154,0.000419,120]
[422388783,1778919294000,-1552.75206154,0.000419,120]
[422388778,1778919294000,-1552.75206154,0.000419,120]
[422388784,1778919294000,-1552.75206154,0.000419,120]
[422388782,1778919294000,-1552.75206154,0.000419,120]
[422388794,1778919294000,-10000.0,0.0004198,40]
[422388792,1778919294000,-151.0,0.00041977,60]
[422388791,1778919294000,-505.69333237,0.00041956,120]
[422388790,1778919294000,-1170.34262103,0.00041955,120]
[422388793,1778919294000,-1000.0,0.0004198,100]
[422388795,1778919294000,-150.0,0.00041987,120]
[422388788,1778919294000,-1552.75206154,0.000419,120]
[422388787,1778919294000,-1552.75206154,0.000419,120]
[422388786,1778919294000,-1552.75206154,0.000419,120]
[422388785,1778919294000,-1552.75206154,0.000419,120]
[422388789,1778919294000,-300.0,0.00041918,120]
[422388805,1778919295000,-10000.0,0.00042,120]
[422388796,1778919295000,-1000.0,0.00041999,120]
[422388797,1778919295000,-50000.0,0.00042,71]
[422388800,1778919295000,-500.0,0.00042,120]
[422388799,1778919295000,-1000000.0,0.00042,120]
[422388801,1778919295000,-3300.0,0.00042,120]
[422388802,1778919295000,-818998.23110132,0.00042,30]
[422388803,1778919295000,-10000.0,0.00042,120]
[422388804,1778919295000,-1255.27,0.00042,120]
[422388798,1778919295000,-499013.63972922,0.00042,120]
[422388806,1778919295000,-907.3123137,0.00042,120]
[422388808,1778919295000,-9999.99,0.00042,30]
[422388810,1778919295000,-1124.11702985,0.00042,120]
[422388809,1778919295000,-1062.07,0.00042,120]
[422388811,1778919295000,-235094.0,0.00042,61]
[422388812,1778919295000,-550000.0,0.00042,30]
[422388814,1778919295000,-1000000.0,0.00042,120]
[422388813,1778919295000,-200000.0,0.00042,61]
[422388816,1778919295000,-289804.73270204,0.00042,120]
[422388815,1778919295000,-1000000.0,0.00042,120]
[422388807,1778919295000,-1296060.74,0.00042,120]
[422388833,1778919518000,737.7,7.376e-05,2]
[422388832,1778919518000,737.7,7.021e-05,2]
[422388834,1778919519000,737.7,7.731e-05,2]
[422388835,1778919519000,-191.63492432,0.00016438,30]
[422388836,1778919519000,-191.63492432,0.00016438,30]
[422388837,1778919519000,-191.63492433,0.00016438,30]
[422388838,1778919519000,-362.38,0.00028854,30]
[422388840,1778919519000,-362.38,0.00028921,30]
[422388839,1778919519000,-352.91,0.00028856,30]
[422388842,1778919519000,-362.38,0.00028988,30]
[422388841,1778919519000,-352.91,0.00028922,30]
[422388844,1778919519000,-362.38,0.00029054,30]
[422388846,1778919519000,-362.38,0.00029121,30]
[422388845,1778919519000,-352.91,0.00029055,30]
[422388847,1778919519000,-352.91,0.00029122,30]
[422388848,1778919519000,-1593.82,0.00029165,30]
[422388849,1778919519000,-363.87,0.00029165,30]
[422388850,1778919519000,-1186.89,0.00029165,30]
[422388851,1778919519000,-1615.3,0.00029172,30]
[422388852,1778919519000,-377.8,0.00029172,30]
[422388843,1778919519000,-352.91,0.00028989,30]
[422388860,1778919520000,-352.91,0.00029188,30]
[422388858,1778919520000,-377.8,0.00029182,30]
[422388859,1778919520000,-1245.23,0.00029182,30]
[422388853,1778919520000,-1245.23,0.00029172,30]
[422388857,1778919520000,-1615.3,0.00029182,30]
[422388854,1778919520000,-1593.82,0.00029177,30]
[422388861,1778919520000,-362.38,0.00029188,30]
[422388856,1778919520000,-1186.89,0.00029177,30]
[422388862,1778919520000,-1593.82,0.00029189,30]
[422388855,1778919520000,-363.87,0.00029177,30]
[422388864,1778919520000,-1186.89,0.00029189,30]
[422388873,1778919520000,-1245.23,0.00029204,30]
[422388872,1778919520000,-377.8,0.00029204,30]
[422388871,1778919520000,-1615.3,0.00029204,30]
[422388870,1778919520000,-1186.89,0.00029201,30]
[422388863,1778919520000,-363.87,0.00029189,30]
[422388868,1778919520000,-1593.82,0.00029201,30]
[422388867,1778919520000,-1245.23,0.00029193,30]
[422388866,1778919520000,-377.8,0.00029193,30]
[422388865,1778919520000,-1615.3,0.00029193,30]
[422388869,1778919520000,-363.87,0.00029201,30]
[422388874,1778919521000,-1593.82,0.00029213,30]
[422388875,1778919521000,-363.87,0.00029213,30]
[422388876,1778919521000,-1186.89,0.00029213,30]
[422388877,1778919521000,-1615.3,0.00029215,30]
[422388879,1778919521000,-1245.23,0.00029215,30]
[422388878,1778919521000,-377.8,0.00029215,30]
[422388880,1778919521000,-1593.82,0.00029224,30]
[422388882,1778919521000,-1186.89,0.00029224,30]
[422388883,1778919521000,-1615.3,0.00029225,30]
[422388881,1778919521000,-363.87,0.00029224,30]
[422388885,1778919521000,-1245.23,0.00029225,30]
[422388893,1778919521000,-1896.5,0.00036153,30]
[422388892,1778919521000,-1088.95,0.00036,30]
[422388891,1778919521000,-3193.12137881,0.00035616,120]
[422388890,1778919521000,-154.34226893,0.0003555,120]
[422388884,1778919521000,-377.8,0.00029225,30]
[422388887,1778919521000,-2312.58,0.00033,30]
[422388888,1778919521000,-180.868,0.00033671,36]
[422388886,1778919521000,-1371.15,0.00030137,120]
[422388889,1778919521000,-983.096,0.00033671,36]
[422388902,1778919522000,-14914.79,0.00038516,30]
[422388895,1778919522000,-2312.58,0.00037,30]
[422388896,1778919522000,-1896.5,0.00038125,30]
[422388897,1778919522000,-160.0,0.000382,40]
[422388898,1778919522000,-160.0,0.000382,40]
[422388900,1778919522000,-1266.17646776,0.00038329,120]
[422388899,1778919522000,-154.34226893,0.00038223,120]
[422388901,1778919522000,-1061.84,0.00038356,30]
[422388894,1778919522000,-14914.79,0.00036774,30]
[422388903,1778919522000,-150.0,0.00038517,120]
[422388906,1778919522000,-663.70947316,0.000389,30]
[422388914,1778919522000,-241.599999,0.000402,50]
[422388912,1778919522000,-150.0,0.00039736,120]
[422388913,1778919522000,-1088.95,0.0004,30]
[422388911,1778919522000,-1504.8,0.00039726,60]
[422388904,1778919522000,-397.93,0.00038806,30]
[422388908,1778919522000,-150.0,0.0003905,120]
[422388909,1778919522000,-160.0,0.000392,45]
[422388907,1778919522000,-663.70947316,0.000389,30]
[422388905,1778919522000,-663.70947318,0.000389,30]
[422388910,1778919522000,-4030.12056118,0.00039688,30]
[422388924,1778919523000,-150.0,0.00040822,60]
[422388916,1778919523000,-2839.48,0.0004029,60]
[422388918,1778919523000,-150.0,0.00040585,120]
[422388917,1778919523000,-150.0,0.00040477,120]
[422388920,1778919523000,-167.22,0.0004075,120]
[422388919,1778919523000,-820.001033,0.000407,34]
[422388921,1778919523000,-730.57,0.0004075,120]
[422388922,1778919523000,-150.0,0.00040822,60]
[422388923,1778919523000,-150.0,0.00040822,60]
[422388915,1778919523000,-14914.79,0.00040257,30]
[422388926,1778919523000,-245.7,0.00041,37]
[422388927,1778919523000,-12861.9942824,0.00041,30]
[422388929,1778919523000,-710195.26729796,0.00041,120]
[422388928,1778919523000,-2312.58,0.00041,30]
[422388931,1778919523000,-1000000.0,0.00041,120]
[422388930,1778919523000,-1000000.0,0.00041,120]
[422388933,1778919523000,-833652.6,0.00041,120]
[422388932,1778919523000,-1000000.0,0.00041,120]
[422388935,1778919523000,-116896.0900043,0.00041033,37]
[422388934,1778919523000,-1368.09,0.00041025,30]
[422388925,1778919523000,-289.9102584,0.00040822,60]
[422388943,1778919525000,-1033.18,0.00041033,120]
[422388941,1778919525000,-1033.18,0.00041033,120]
[422388942,1778919525000,-1033.18,0.00041033,120]
[422388940,1778919525000,-1033.18,0.00041033,120]
[422388944,1778919525000,-1033.18,0.00041033,120]
[422388938,1778919525000,-828.81142641,0.00041033,120]
[422388936,1778919525000,-1000.0,0.00041033,120]
[422388937,1778919525000,-405.88818884,0.00041033,120]
[422388939,1778919525000,-1033.19,0.00041033,120]
[422388945,1778919525000,-1033.18,0.00041033,120]
[422388949,1778919525000,-1033.18,0.00041033,120]
[422388947,1778919525000,-1033.18,0.00041033,120]
[422388946,1778919525000,-1033.18,0.00041033,120]
[422388955,1778919525000,-151.0,0.00041033,30]
[422388954,1778919525000,-1033.18,0.00041033,120]
[422388952,1778919525000,-1033.18,0.00041033,120]
[422388956,1778919525000,-208.119793,0.00041033,30]
[422388950,1778919525000,-1033.18,0.00041033,120]
[422388951,1778919525000,-1033.18,0.00041033,120]
[422388948,1778919525000,-1033.18,0.00041033,120]
[422388957,1778919525000,-484.396849,0.00041033,30]
[422388953,1778919525000,-1033.18,0.00041033,120]
[422388965,1778919526000,-484.396849,0.00041033,30]
[422388958,1778919526000,-484.396849,0.00041033,30]
[422388959,1778919526000,-484.396849,0.00041033,30]
[422388960,1778919526000,-484.396849,0.00041033,30]
[422388962,1778919526000,-484.396849,0.00041033,30]
[422388961,1778919526000,-484.396849,0.00041033,30]
[422388963,1778919526000,-484.396849,0.00041033,30]
[422388964,1778919526000,-484.396849,0.00041033,30]
[422388967,1778919526000,-484.396849,0.00041033,30]
[422388966,1778919526000,-484.396849,0.00041033,30]
[422388979,1778919526000,-484.396848,0.00041033,30]
[422388968,1778919526000,-151.0,0.00041033,30]
[422388971,1778919526000,-484.396849,0.00041033,30]
[422388970,1778919526000,-154.68493,0.00041033,30]
[422388973,1778919526000,-484.396849,0.00041033,30]
[422388974,1778919526000,-484.396849,0.00041033,30]
[422388975,1778919526000,-484.396849,0.00041033,30]
[422388977,1778919526000,-484.396849,0.00041033,30]
[422388976,1778919526000,-484.396849,0.00041033,30]
[422388978,1778919526000,-484.396849,0.00041033,30]
[422388969,1778919526000,-484.396849,0.00041033,30]
[422388988,1778919527000,-198.911634,0.00041033,30]
[422388987,1778919527000,-198.911634,0.00041033,30]
[422388986,1778919527000,-198.911634,0.00041033,30]
[422388985,1778919527000,-198.911634,0.00041033,30]
[422388990,1778919527000,-198.911634,0.00041033,30]
[422388983,1778919527000,-198.911634,0.00041033,30]
[422388982,1778919527000,-198.911634,0.00041033,30]
[422388980,1778919527000,-198.911634,0.00041033,30]
[422388981,1778919527000,-198.911634,0.00041033,30]
[422388984,1778919527000,-198.911634,0.00041033,30]
[422388989,1778919527000,-198.911634,0.00041033,30]
[422389002,1778919527000,-151.0,0.00041033,30]
[422388991,1778919527000,-198.911634,0.00041033,30]
[422388992,1778919527000,-198.911634,0.00041033,30]
[422389000,1778919527000,-151.0,0.00041033,30]
[422388998,1778919527000,-198.911634,0.00041033,30]
[422388999,1778919527000,-198.911638,0.00041033,30]
[422389001,1778919527000,-151.0,0.00041033,30]
[422388996,1778919527000,-198.911634,0.00041033,30]
[422388995,1778919527000,-198.911634,0.00041033,30]
[422388994,1778919527000,-198.911634,0.00041033,30]
[422388993,1778919527000,-198.911634,0.00041033,30]
[422388997,1778919527000,-198.911634,0.00041033,30]
[422389012,1778919528000,-151.0,0.00041033,30]
[422389004,1778919528000,-151.0,0.00041033,30]
[422389003,1778919528000,-151.0,0.00041033,30]
[422389006,1778919528000,-165.407147,0.00041033,30]
[422389005,1778919528000,-151.0,0.00041033,30]
[422389007,1778919528000,-151.0,0.00041033,30]
[422389008,1778919528000,-151.0,0.00041033,30]
[422389009,1778919528000,-160.729988,0.00041033,30]
[422389010,1778919528000,-151.0,0.00041033,30]
[422389011,1778919528000,-151.0,0.00041033,30]
[422389013,1778919528000,-151.0,0.00041033,30]
[422389016,1778919528000,-151.0,0.00041033,30]
[422389026,1778919528000,-195.596786,0.00041033,30]
[422389015,1778919528000,-151.0,0.00041033,30]
[422389018,1778919528000,-151.0,0.00041033,30]
[422389017,1778919528000,-151.0,0.00041033,30]
[422389019,1778919528000,-151.0,0.00041033,30]
[422389021,1778919528000,-151.0,0.00041033,30]
[422389020,1778919528000,-151.0,0.00041033,30]
[422389022,1778919528000,-151.0,0.00041033,30]
[422389023,1778919528000,-151.0,0.00041033,30]
[422389025,1778919528000,-151.0,0.00041033,30]
[422389024,1778919528000,-151.0,0.00041033,30]
[422389014,1778919528000,-151.0,0.00041033,30]
[422389036,1778919529000,-769.475939,0.00041033,30]
[422389034,1778919529000,-769.475939,0.00041033,30]
[422389033,1778919529000,-769.475939,0.00041033,30]
[422389032,1778919529000,-769.475939,0.00041033,30]
[422389028,1778919529000,-769.475939,0.00041033,30]
[422389029,1778919529000,-769.475939,0.00041033,30]
[422389027,1778919529000,-769.475939,0.00041033,30]
[422389035,1778919529000,-769.475939,0.00041033,30]
[422389030,1778919529000,-769.475939,0.00041033,30]
[422389037,1778919529000,-769.475939,0.00041033,30]
[422389031,1778919529000,-769.475939,0.00041033,30]
[422389038,1778919529000,-769.475939,0.00041033,30]
[422389039,1778919529000,-769.475939,0.00041033,30]
[422389046,1778919529000,-769.475936,0.00041033,30]
[422389045,1778919529000,-769.475939,0.00041033,30]
[422389044,1778919529000,-769.475939,0.00041033,30]
[422389048,1778919529000,-151.0,0.00041033,30]
[422389042,1778919529000,-769.475939,0.00041033,30]
[422389043,1778919529000,-769.475939,0.00041033,30]
[422389040,1778919529000,-769.475939,0.00041033,30]
[422389041,1778919529000,-769.475939,0.00041033,30]
[422389047,1778919529000,-151.0,0.00041033,30]
[422389057,1778919530000,-153.598442,0.00041033,30]
[422389049,1778919530000,-151.0,0.00041033,30]
[422389050,1778919530000,-151.0,0.00041033,30]
[422389051,1778919530000,-151.0,0.00041033,30]
[422389053,1778919530000,-151.0,0.00041033,30]
[422389052,1778919530000,-151.0,0.00041033,30]
[422389055,1778919530000,-151.0,0.00041033,30]
[422389054,1778919530000,-151.0,0.00041033,30]
[422389056,1778919530000,-195.921761,0.00041033,30]
[422389062,1778919530000,-151.0,0.00041033,30]
[422389058,1778919530000,-151.0,0.00041033,30]
[422389060,1778919530000,-151.0,0.00041033,30]
[422389061,1778919530000,-151.0,0.00041033,30]
[422389063,1778919530000,-151.0,0.00041033,30]
[422389064,1778919530000,-151.0,0.00041033,30]
[422389065,1778919530000,-151.0,0.00041033,30]
[422389066,1778919530000,-151.0,0.00041033,30]
[422389068,1778919530000,-151.0,0.00041033,30]
[422389067,1778919530000,-151.0,0.00041033,30]
[422389059,1778919530000,-151.0,0.00041033,30]
[422389076,1778919531000,-151.0,0.00041033,30]
[422389075,1778919531000,-151.0,0.00041033,30]
[422389077,1778919531000,-273.802414,0.00041033,30]
[422389074,1778919531000,-151.0,0.00041033,30]
[422389078,1778919531000,-172.306138,0.00041033,30]
[422389071,1778919531000,-151.0,0.00041033,30]
[422389073,1778919531000,-151.0,0.00041033,30]
[422389069,1778919531000,-151.0,0.00041033,30]
[422389072,1778919531000,-151.0,0.00041033,30]
[422389079,1778919531000,-256.880221,0.00041033,30]
[422389070,1778919531000,-151.0,0.00041033,30]
[422389081,1778919531000,-256.880221,0.00041033,30]
[422389090,1778919531000,-256.880221,0.00041033,30]
[422389089,1778919531000,-256.880221,0.00041033,30]
[422389088,1778919531000,-256.880221,0.00041033,30]
[422389087,1778919531000,-256.880221,0.00041033,30]
[422389080,1778919531000,-256.880221,0.00041033,30]
[422389085,1778919531000,-256.880221,0.00041033,30]
[422389084,1778919531000,-256.880221,0.00041033,30]
[422389083,1778919531000,-256.880221,0.00041033,30]
[422389082,1778919531000,-256.880221,0.00041033,30]
[422389086,1778919531000,-256.880221,0.00041033,30]
[422389099,1778919532000,-256.880221,0.00041033,30]
[422389091,1778919532000,-256.880221,0.00041033,30]
[422389092,1778919532000,-256.880221,0.00041033,30]
[422389094,1778919532000,-151.0,0.00041033,30]
[422389093,1778919532000,-151.0,0.00041033,30]
[422389096,1778919532000,-256.880221,0.00041033,30]
[422389095,1778919532000,-256.880221,0.00041033,30]
[422389097,1778919532000,-152.939565,0.00041033,30]
[422389098,1778919532000,-256.880221,0.00041033,30]
[422389101,1778919532000,-256.880215,0.00041033,30]
[422389100,1778919532000,-256.880221,0.00041033,30]
[422389103,1778919532000,-158.21273,0.00041033,30]
[422389112,1778919532000,-539.420893,0.00041062,30]
[422389109,1778919532000,-158.21273,0.00041033,30]
[422389110,1778919532000,-1450.4,0.00041041,120]
[422389108,1778919532000,-158.21273,0.00041033,30]
[422389111,1778919532000,-539.420893,0.00041062,30]
[422389107,1778919532000,-158.21273,0.00041033,30]
[422389105,1778919532000,-158.21273,0.00041033,30]
[422389104,1778919532000,-158.21273,0.00041033,30]
[422389102,1778919532000,-158.21273,0.00041033,30]